bitfinex/quotes_ETHUSD_20220311
["timestamp","ask_amount","ask_price","bid_price","bid_amount"]
[1647007384921,0.95565,2615.3,2615.1,1.42028346]
[1647007385718,0.95565,2615.3,2615.1,1.41666]
[1647007386219,0.95565,2615.3,2615.1,1.4202905]
[1647007387023,0.95565,2615.3,2615.1,1.41666]
[1647007387219,0.95565,2615.3,2615.1,1.42029179]
[1647007388267,0.95565,2615.3,2615.1,1.41666]
[1647007388468,0.95565,2615.3,2615.1,1.42029179]
[1647007388770,0.95565,2615.3,2615.1,0.95929179]
[1647007388968,0.95565,2615.3,2615.1,0.00363179]
[1647007389467,0.95565,2615.3,2615.0,0.95569]
[1647007389676,0.95565,2615.3,2615.1,0.00363127]
[1647007390575,0.95565,2615.3,2615.0,0.95569]
[1647007390973,0.95565,2615.3,2615.1,0.00363089]
[1647007391374,0.95565,2615.3,2615.1,0.95559]
[1647007395119,0.95542,2615.5,2615.2,1.0304214]
[1647007395320,0.95542,2615.5,2615.3,1.0289902]
[1647007396168,0.95542,2615.5,2615.3,1.4899902]
[1647007397470,0.95542,2615.5,2615.3,1.0289902]
[1647007397666,0.95542,2615.5,2615.3,0.0735302]
[1647007399368,0.95542,2615.5,2615.3,1.0291102]
[1647007402025,2.4583,2615.9,2615.3,1.0291102]
[1647007402026,0.9553,2615.9,2615.4,0.53871548]
[1647007402225,1.16539512,2616.1,2615.5,1.04032561]
[1647007402426,0.00389512,2616.1,2615.6,0.0866688]
[1647007402628,1.91055,2616.2,2615.6,0.0866688]
[1647007402826,1.91055,2616.2,2615.6,0.3366688]
[1647007403025,0.83328223,2616.1,2615.6,0.3366688]
[1647007403266,0.83328223,2616.1,2615.6,2.2472166]
[1647007403668,0.95528,2616.0,2615.6,1.2919588]
[1647007403868,0.95528,2616.0,2615.6,0.95529]
[1647007403869,0.05039465,2615.9,2615.6,0.95529]
[1647007404070,1.96148465,2615.9,2615.5,2.91057]
[1647007404269,2.26148465,2615.9,2615.5,2.91057]
[1647007404675,2.26148465,2615.9,2615.5,1.91057]
[1647007404873,2.26148465,2615.9,2615.5,2.91057]
[1647007405074,2.26148465,2615.9,2615.5,1.91057]
[1647007405277,2.26148465,2615.9,2615.5,2.91057]
[1647007405475,2.26148465,2615.9,2615.5,2.86611]
[1647007405673,2.26148465,2615.9,2615.5,3.86611]
[1647007405874,2.21109,2615.9,2615.5,3.86611]
[1647007407215,2.21109,2615.9,2615.5,2.86611]
[1647007407417,2.21109,2615.9,2615.6,0.9554972]
[1647007407616,2.21109,2615.9,2615.7,0.95549]
[1647007408219,0.3,2615.9,2615.7,0.95549]
[1647007408420,0.3,2615.9,2615.6,1.91097]
[1647007408421,0.34832915,2615.9,2615.6,1.91097]
[1647007408820,0.04832915,2615.9,2615.6,2.8664907]
[1647007409624,0.04832915,2615.9,2615.6,4.7773664]
[1647007410524,0.04832915,2615.9,2615.7,0.95548]
[1647007410764,0.04832915,2615.9,2615.7,1.9109002]
[1647007412471,0.04832915,2615.9,2615.7,1.89927582]
[1647007417320,0.95554,2616.0,2615.7,1.89927582]
[1647007418865,0.30389534,2616.1,2615.7,1.89927582]
[1647007419067,0.00389534,2616.1,2615.8,1.91076]
[1647007419466,1.00771012,2616.2,2615.8,1.91076]
[1647007419668,0.00389537,2616.1,2615.8,1.91076]
[1647007420067,0.95934537,2616.1,2615.8,1.91076]
[1647007420474,0.00389537,2616.1,2615.9,1.91065]
[1647007420667,1.95225434,2616.6,2615.9,2.8660015]
[1647007420867,0.00378038,2616.1,2615.9,0.95533]
[1647007421769,1.00514602,2616.2,2615.9,0.95533]
[1647007422217,0.00378041,2616.1,2615.9,0.95533]
[1647007422620,1.07600883,2616.0,2615.9,0.95533]
[1647007422819,0.30378041,2616.1,2615.8,0.95537]
[1647007423026,0.3,2616.1,2615.8,1.9108569]
[1647007423221,1.00514602,2616.2,2615.8,1.9108569]
[1647007423421,0.00378041,2616.1,2615.9,0.95541]
[1647007423624,0.00378041,2616.1,2615.9,1.91082]
[1647007424023,0.85669575,2616.1,2615.9,1.91082]
[1647007424223,0.95541,2616.2,2615.9,2.16082]
[1647007424424,0.00389543,2616.1,2615.9,4.0715602]
[1647007424827,0.00389543,2616.1,2615.9,5.0715602]
[1647007425027,0.00389543,2616.1,2615.9,4.0715602]
[1647007425326,0.00389543,2616.1,2616.0,0.37555271]
[1647007425532,0.95534,2616.4,2616.1,1.9105928]
[1647007425766,0.95534,2616.4,2616.1,0.95532]
[1647007426970,0.95923908,2616.4,2616.1,0.95532]
[1647007427968,0.95534,2616.4,2616.1,0.95532]
[1647007428172,0.9590567,2616.4,2616.1,0.95532]
[1647007428767,0.049048,2616.3,2616.1,0.95532]
[1647007428969,0.04156973,2616.2,2616.1,0.95532]
[1647007429169,0.04156973,2616.2,2616.0,1.91064]
[1647007430531,0.04528241,2616.2,2616.0,1.91064]
[1647007431430,0.04156973,2616.2,2616.0,1.91064]
[1647007431629,0.04546479,2616.2,2616.0,1.91064]
[1647007432630,0.04156973,2616.2,2616.0,1.91064]
[1647007432831,0.04547123,2616.2,2616.0,1.91064]
[1647007433469,0.04547123,2616.2,2616.0,1.89901562]
[1647007433864,0.04156973,2616.2,2616.0,1.89901562]
[1647007434065,0.04547123,2616.2,2616.0,1.89901562]
[1647007434970,0.04156973,2616.2,2616.0,1.89901562]
[1647007435371,0.04547123,2616.2,2616.0,1.89901562]
[1647007436172,0.04156973,2616.2,2616.0,1.89901562]
[1647007436573,0.04546464,2616.2,2616.0,1.89901562]
[1647007437413,0.04156973,2616.2,2616.0,1.89901562]
[1647007437813,0.04546464,2616.2,2616.0,1.89901562]
[1647007439920,0.04156973,2616.2,2616.0,1.89901562]
[1647007440124,0.04546509,2616.2,2616.0,1.89901562]
[1647007440965,0.04156973,2616.2,2616.0,1.89901562]
[1647007441366,0.04546509,2616.2,2616.0,1.89901562]
[1647007442166,0.04156973,2616.2,2616.0,1.89901562]
[1647007442567,0.04546509,2616.2,2616.0,1.89901562]
[1647007443366,0.04156973,2616.2,2616.0,1.89901562]
[1647007443769,0.04546505,2616.2,2616.0,1.89901562]
[1647007444620,0.04156973,2616.2,2616.0,1.89901562]
[1647007445118,0.04546505,2616.2,2616.0,1.89901562]
[1647007445323,1.00115505,2616.2,2615.8,0.9557]
[1647007445523,1.622339,2616.1,2615.5,1.91134]
[1647007445723,0.04642019,2616.1,2615.5,1.91134]
[1647007446122,0.0503156,2616.1,2615.5,1.91134]
[1647007446426,0.95813134,2615.6,2615.5,1.91134]
[1647007449467,0.95813134,2615.6,2615.4,2.16149]
[1647007449671,0.95569,2615.8,2615.4,2.16149]
[1647007450273,1.25569,2615.8,2615.4,2.16149]
[1647007450476,1.25569,2615.8,2615.5,0.95565]
[1647007451677,1.25569,2615.8,2615.0,0.0038969]
[1647007451678,5.51799524,2615.7,2615.0,0.0038969]
[1647007451873,5.51799524,2615.7,2614.7,0.08774594]
[1647007451874,0.04942646,2615.5,2614.7,0.08774594]
[1647007452132,0.04942646,2615.5,2614.4,0.00096]
[1647007452332,3.00114769,2615.5,2615.0,0.00389693]
[1647007452533,6.0052,2615.6,2615.0,0.00389693]
[1647007452534,0.0474364,2615.2,2615.0,0.00389693]
[1647007452729,0.0483919,2615.1,2615.0,0.00389693]
[1647007452930,0.3483919,2615.1,2615.0,0.00389693]
[1647007453129,0.3483919,2615.1,2614.3,0.01796992]
[1647007453329,0.3,2615.1,2615.0,0.00389659]
[1647007454133,3.1681,2615.1,2615.0,0.00389659]
[1647007454336,7.9681,2615.1,2614.3,0.00730554]
[1647007454534,7.9681,2615.1,2614.9,0.00389663]
[1647007454735,3.51204,2615.1,2614.9,0.00389663]
[1647007454935,2.51204,2615.1,2614.9,0.00389663]
[1647007455533,2.51204,2615.1,2614.3,0.00730554]
[1647007455766,2.51204,2615.1,2614.3,0.00634554]
[1647007455767,1.03442783,2614.4,2614.3,0.00634554]
[1647007455968,1.91198,2614.7,2614.3,0.00634554]
[1647007456973,1.88708966,2614.6,2614.3,0.00634554]
[1647007457171,1.88708966,2614.6,2614.4,0.0038971]
[1647007457371,1.88708966,2614.6,2614.5,0.07300835]
[1647007457571,0.93109966,2614.6,2614.5,0.07300835]
[1647007458070,0.93109966,2614.6,2614.3,0.00634554]
[1647007458271,0.93109966,2614.6,2614.4,0.00391173]
[1647007459071,1.23109966,2614.6,2614.3,0.00634554]
[1647007459271,1.23109966,2614.6,2614.5,0.0035641]
[1647007459723,0.93109966,2614.6,2614.5,0.0035641]
[1647007459924,1.91198,2614.7,2614.5,0.0035641]
[1647007460625,1.91198,2614.7,2614.5,0.00747579]
[1647007460823,1.91198,2614.7,2614.5,0.09318947]
[1647007461023,2.99676653,2614.7,2614.5,0.09318947]
[1647007461624,2.99676653,2614.7,2614.5,0.08927778]
[1647007461827,2.99676653,2614.7,2614.5,0.09317388]
[1647007462725,2.99676653,2614.7,2614.5,0.0035641]
[1647007462927,2.99676653,2614.7,2614.5,0.0074602]
[1647007463369,3.29676653,2614.7,2614.5,0.0074602]
[1647007463568,3.34519213,2614.7,2614.5,0.0074602]
[1647007463971,3.34519213,2614.7,2614.5,0.0035641]
[1647007464172,3.29676653,2614.7,2614.5,0.0035641]
[1647007464372,3.29676653,2614.7,2614.5,0.0074602]
[1647007465379,2.99676653,2614.7,2614.5,0.0074602]
[1647007465577,3.29676653,2614.7,2614.5,0.00747325]
[1647007466276,2.99676653,2614.7,2614.5,0.0035641]
[1647007466677,2.99676653,2614.7,2614.5,0.00747325]
[1647007467525,2.99676653,2614.7,2614.5,0.0035641]
[1647007467725,2.99676653,2614.7,2614.5,0.00747325]
[1647007468824,2.99676653,2614.7,2614.5,0.0035641]
[1647007469025,2.99676653,2614.7,2614.5,0.00747154]
[1647007469224,3.29676653,2614.7,2614.5,0.00747154]
[1647007469628,2.99676653,2614.7,2614.5,0.00747154]
[1647007470025,2.99676653,2614.7,2614.5,0.0035641]
[1647007470226,2.99676653,2614.7,2614.5,0.00747154]
[1647007471068,2.99676653,2614.7,2614.5,0.0035641]
[1647007471472,2.99676653,2614.7,2614.5,0.00747154]
[1647007472474,2.99676653,2614.7,2614.5,0.0035641]
[1647007472774,2.99676653,2614.7,2614.5,0.00747173]
[1647007473473,2.99676653,2614.7,2614.5,0.0035641]
[1647007473875,2.99676653,2614.7,2614.5,0.00747173]
[1647007474739,2.99676653,2614.7,2614.5,0.0035641]
[1647007474943,1.91199,2614.8,2614.5,0.00747173]
[1647007475141,2.9436,2615.1,2614.6,0.95588]
[1647007475142,0.95583,2615.1,2614.6,0.95588]
[1647007475338,5.4024,2615.2,2614.6,0.95588]
[1647007475339,1.245,2615.2,2614.7,0.08411938]
[1647007475540,1.245,2615.2,2614.7,0.072495]
[1647007475741,1.0,2614.9,2614.7,0.072495]
[1647007475940,1.245,2615.2,2614.7,0.072495]
[1647007476141,0.95586,2615.0,2614.8,0.06912985]
[1647007476341,2.10088873,2615.0,2614.8,0.07303716]
[1647007477142,2.10088873,2615.0,2614.8,0.06912985]
[1647007477549,2.10088873,2615.0,2614.8,0.07303721]
[1647007478145,0.95586,2615.0,2614.8,0.07303721]
[1647007478376,0.95581,2615.2,2615.0,1.91153]
[1647007478776,1.00661591,2615.2,2615.0,1.91153]
[1647007479179,1.98660164,2615.2,2615.0,1.91153]
[1647007479577,1.98660164,2615.2,2614.9,0.0052759]
[1647007479778,1.98660164,2615.2,2615.0,0.00390717]
[1647007480279,2.02996905,2615.2,2615.0,0.00390717]
[1647007480480,1.98660164,2615.2,2615.0,0.00390717]
[1647007480681,1.98660164,2615.2,2614.9,0.0052759]
[1647007481083,0.95581,2615.2,2615.0,1.91550717]
[1647007481583,1.25581,2615.2,2615.0,1.91550717]
[1647007482031,0.98320467,2615.1,2615.0,1.9116]
[1647007482225,0.98320467,2615.1,2615.0,1.91550717]
[1647007483125,1.21337116,2615.2,2615.0,1.9116]
[1647007483325,1.1464,2615.6,2615.1,3.5]
[1647007483525,4.4136,2615.7,2615.1,3.82525481]
[1647007483725,2.459,2615.9,2615.2,1.02842751]
[1647007484326,0.90361657,2615.8,2615.4,0.08834339]
[1647007484527,0.90361657,2615.8,2615.5,0.95558]
[1647007484726,0.90361657,2615.8,2615.5,1.91118]
[1647007484927,0.90361657,2615.8,2615.5,1.86118]
[1647007485528,1.25555,2615.9,2615.5,1.86118]
[1647007485776,0.00390578,2616.1,2615.6,4.4555824]
[1647007485977,0.00390578,2616.1,2615.8,1.91078]
[1647007486178,0.00390578,2616.1,2615.9,0.07036716]
[1647007486780,0.83290883,2616.0,2615.9,0.07036716]
[1647007486981,0.83290883,2616.0,2615.9,1.98102716]
[1647007487181,0.00390599,2616.1,2616.0,0.07193964]
[1647007487687,0.00390599,2616.1,2616.0,4.52725964]
[1647007487982,10.043,2616.9,2616.0,5.94363274]
[1647007487983,1.0,2616.9,2616.0,5.94363274]
[1647007488182,0.99124206,2617.0,2616.0,5.98831274]
[1647007488380,0.99124206,2617.0,2616.2,1.91005]
[1647007488580,0.99124206,2617.0,2616.3,3.961]
[1647007488782,0.99124206,2617.0,2616.4,0.07602621]
[1647007488982,0.99124206,2617.0,2616.5,0.9550168]
[1647007489182,1.99120322,2617.0,2616.5,0.9550168]
[1647007489531,0.00390538,2616.8,2616.5,0.9550168]
[1647007489724,0.00390538,2616.8,2616.5,1.9102768]
[1647007489725,0.05489904,2616.8,2616.5,1.9102768]
[1647007489924,0.05489904,2616.8,2615.6,0.07275866]
[1647007490124,0.05489904,2616.8,2615.9,0.9555445]
[1647007490125,2.92131904,2616.8,2615.9,0.9555445]
[1647007490331,0.04218284,2616.6,2615.9,0.9555445]
[1647007490526,0.04218284,2616.6,2615.9,1.2055445]
[1647007490727,0.92052758,2616.0,2615.9,1.2055445]
[1647007490928,0.92052758,2616.0,2615.9,2.16095]
[1647007491925,0.87052758,2616.0,2615.9,2.16095]
[1647007493475,0.00390651,2616.1,2615.9,2.16095]
[1647007493675,0.00390651,2616.1,2615.9,4.0718023]
[1647007493875,0.00390651,2616.1,2616.0,0.08279595]
[1647007494076,0.04702165,2616.7,2616.0,1.03818595]
[1647007494281,0.00390652,2616.1,2616.0,1.03818595]
[1647007494680,0.00390652,2616.1,2616.0,1.99357595]
[1647007495083,0.00390652,2616.1,2615.9,1.91095]
[1647007495284,0.04739648,2616.1,2615.9,1.91095]
[1647007495981,2.09466412,2616.2,2615.9,1.91095]
[1647007496183,2.09466412,2616.2,2615.9,2.16095]
[1647007496184,1.13906412,2616.2,2615.9,2.16095]
[1647007496382,1.13906412,2616.2,2615.9,1.91095]
[1647007496582,1.13515764,2616.2,2615.9,1.89932562]
[1647007496783,1.13906412,2616.2,2615.9,1.89932562]
[1647007497034,1.13906412,2616.2,2615.9,2.85475562]
[1647007497223,2.09449412,2616.2,2615.9,2.85475562]
[1647007497624,2.09449412,2616.2,2616.0,3.5]
[1647007497625,1.13515764,2616.2,2616.0,3.5]
[1647007497826,1.13905287,2616.2,2616.1,0.06954845]
[1647007498629,0.00389523,2616.2,2616.1,3.56954845]
[1647007498826,0.04886392,2617.1,2616.1,1.32472845]
[1647007499025,0.04886392,2617.1,2616.3,0.95523]
[1647007499026,0.95519,2616.9,2616.3,0.95523]
[1647007499625,0.89165639,2616.8,2616.3,0.95523]
[1647007499929,0.89165639,2616.8,2616.4,0.95529]
[1647007499930,0.05159198,2616.7,2616.4,0.95529]
[1647007500328,0.05548678,2616.7,2616.4,0.95529]
[1647007500782,0.95529,2616.6,2616.4,0.95529]
[1647007501172,0.95529,2616.6,2616.4,1.9105806]
[1647007501579,0.9591856,2616.6,2616.4,1.9105806]
[1647007502377,0.95529,2616.6,2616.4,1.9105806]
[1647007502583,0.9591856,2616.6,2616.4,1.9105806]
[1647007503588,0.9591856,2616.6,2616.4,1.9106149]
[1647007503589,0.90529,2616.6,2616.4,1.9106149]
[1647007503789,0.90529,2616.6,2615.9,0.25]
[1647007503790,0.0500418,2616.5,2615.9,0.25]
[1647007503988,1.9609818,2616.5,2616.0,1.91088]
[1647007504187,0.04167166,2616.4,2616.0,1.91088]
[1647007504387,0.99712166,2616.4,2616.0,1.91088]
[1647007504628,0.83686794,2616.3,2616.0,2.8663601]
[1647007504831,0.04701536,2616.2,2615.9,1.91092]
[1647007505030,0.04701536,2616.2,2615.8,0.95564]
[1647007505228,0.04701536,2616.2,2615.1,2.86672]
[1647007505430,0.04127526,2615.9,2615.2,0.2]
[1647007505629,0.0438727,2616.1,2615.2,0.2]
[1647007505829,1.12205743,2615.6,2615.3,1.911222]
[1647007506035,0.0438727,2616.1,2615.5,1.91129]
[1647007506431,0.04776846,2616.1,2615.5,1.91129]
[1647007506629,0.00389576,2616.1,2615.5,1.91129]
[1647007507233,1.2391,2616.2,2615.6,1.91088]
[1647007507431,2.11031968,2616.2,2615.7,3.5]
[1647007507632,0.00389585,2616.1,2615.7,3.5]
[1647007507830,0.00389585,2616.1,2615.9,1.91072]
[1647007508033,0.00389585,2616.1,2616.0,3.5]
[1647007508269,0.00389585,2616.1,2615.9,2.21072]
[1647007508474,5.7614,2616.6,2615.9,2.21072]
[1647007508679,0.00389596,2616.2,2615.9,2.21072]
[1647007509475,0.00389596,2616.2,2616.0,0.95533]
[1647007509675,1.06183046,2616.4,2616.0,0.95533]
[1647007509874,0.00165406,2616.2,2616.0,0.95533]
[1647007510075,0.00165406,2616.2,2616.0,1.91065]
[1647007510275,0.00165406,2616.2,2616.1,0.955319]
[1647007510777,1.06183046,2616.4,2616.1,0.955319]
[1647007510978,1.06183046,2616.4,2616.2,0.95527]
[1647007511183,0.00159258,2616.3,2616.2,0.95527]
[1647007511378,0.00159258,2616.3,2616.2,2.2105371]
[1647007511876,0.00159258,2616.3,2616.2,1.2552671]
[1647007512120,1.06183046,2616.4,2616.2,1.2552671]
[1647007512318,1.06598952,2616.4,2616.2,0.9552671]
[1647007513330,0.04808045,2616.7,2616.2,1.9106071]
[1647007513532,0.00415901,2616.4,2616.2,2.2106071]
[1647007513738,0.00415901,2616.4,2616.3,0.95515]
[1647007514532,2.12431866,2616.9,2616.5,1.2051]
[1647007514732,0.95231866,2616.9,2616.6,0.9550886]
[1647007514932,0.05200248,2617.0,2616.6,0.9550886]
[1647007515533,1.2194,2617.2,2616.8,0.95501]
[1647007515772,0.04915207,2617.6,2616.8,0.955]
[1647007515972,4.76212797,2617.9,2616.8,4.5810245]
[1647007515973,0.00165429,2616.9,2616.8,4.5810245]
[1647007516171,0.00165429,2616.9,2616.8,4.8810245]
[1647007516372,0.00165429,2616.9,2616.8,5.07495487]
[1647007516576,0.91030998,2617.9,2616.9,5.0]
[1647007516777,0.91030998,2617.9,2617.2,0.95479]
[1647007516977,0.91030998,2617.9,2617.4,1.2048145]
[1647007517177,0.91030998,2617.9,2617.4,0.25]
[1647007517580,0.91030998,2617.9,2617.4,0.23837562]
[1647007517776,0.91030998,2617.9,2617.5,0.95482]
[1647007518178,0.91030998,2617.9,2617.5,1.25482]
[1647007518378,0.00164985,2617.8,2617.6,0.95476]
[1647007518587,0.05484656,2617.8,2617.6,0.95476]
[1647007518779,0.05484656,2617.8,2617.5,2.13918631]
[1647007519176,0.05319671,2617.8,2617.5,2.13918631]
[1647007519377,0.05484656,2617.8,2617.5,2.13918631]
[1647007519830,0.05484656,2617.8,2617.4,0.23837562]
[1647007520429,1.00834671,2617.8,2617.1,0.09720764]
[1647007520631,1.00834671,2617.8,2616.4,1.91023]
[1647007520632,1.62906145,2617.7,2616.4,1.91023]
[1647007520833,1.03042106,2616.5,2616.2,0.3]
[1647007521033,1.03042106,2616.5,2616.3,0.95525]
[1647007521233,1.03042106,2616.5,2616.3,2.21051]
[1647007521432,1.03042106,2616.5,2616.3,1.91051]
[1647007521637,0.05310326,2617.5,2616.6,0.9552435]
[1647007521832,0.05310326,2617.5,2616.5,1.910487]
[1647007522034,0.00423714,2616.7,2616.5,1.910487]
[1647007522334,0.00423714,2616.7,2616.5,3.820727]
[1647007522533,0.00423714,2616.7,2616.6,0.9551]
[1647007522937,2.7193,2617.6,2616.6,0.9551]
[1647007523134,2.7193,2617.6,2616.9,0.95498]
[1647007523374,0.04886715,2618.0,2616.9,0.95498]
[1647007523573,0.04886715,2618.0,2617.0,0.3]
[1647007523774,0.05388337,2617.7,2617.1,0.95497]
[1647007523971,1.05453895,2617.6,2617.1,0.9549761]
[1647007524175,1.05453895,2617.6,2617.2,1.25498]
[1647007524372,0.00423641,2617.5,2617.2,1.25498]
[1647007524983,0.00423641,2617.5,2617.2,1.909959]
[1647007525178,0.04699707,2617.5,2617.2,0.95498]
[1647007525880,1.05453895,2617.6,2617.2,0.95498]
[1647007526081,1.05453895,2617.6,2617.2,1.9100526]
[1647007526883,0.05123722,2617.5,2617.2,1.9100526]
[1647007527333,0.00165365,2617.5,2617.3,0.95489]
[1647007527533,0.04734236,2617.8,2617.3,0.95489]
[1647007527731,0.04490384,2618.0,2617.5,0.95481]
[1647007528132,2.7193,2618.3,2617.5,0.95481]
[1647007528333,1.57474739,2618.2,2617.5,0.95481]
[1647007528636,0.04492938,2618.1,2617.5,0.95481]
[1647007528838,0.04492938,2618.1,2617.5,1.9096191]
[1647007529037,0.04492938,2618.1,2617.6,0.95488]
[1647007529243,0.00424101,2618.0,2617.6,0.95488]
[1647007529840,0.00424101,2618.0,2617.7,0.954717]
[1647007530040,0.04186898,2618.3,2617.7,0.954717]
[1647007530239,0.92674383,2617.9,2617.7,0.95481]
[1647007530540,0.00424106,2617.9,2617.7,0.95481]
[1647007530782,0.00424106,2617.9,2617.8,0.08400401]
[1647007531286,0.05171854,2618.6,2618.0,0.95479]
[1647007531484,0.05171854,2618.6,2618.0,2.159568]
[1647007531485,1.57459074,2618.5,2618.0,2.159568]
[1647007531684,1.01790994,2618.1,2618.0,1.204778]
[1647007532484,0.05171854,2618.6,2618.0,1.204778]
[1647007532690,1.57456409,2618.5,2618.0,3.114118]
[1647007532889,0.00424081,2618.2,2618.0,3.114118]
[1647007533787,0.05171854,2618.6,2618.0,3.114118]
[1647007533988,0.00409764,2618.2,2618.0,3.114118]
[1647007534187,0.00409764,2618.2,2618.0,4.068758]
[1647007534391,0.00409764,2618.2,2618.0,3.114118]
[1647007534635,0.00409764,2618.2,2617.9,1.90933]
[1647007534936,0.04147783,2618.2,2618.0,0.95487]
[1647007535333,0.04147783,2618.2,2618.0,1.9096546]
[1647007535533,2.14049492,2618.5,2618.0,1.9096546]
[1647007535735,1.57472047,2618.4,2618.0,2.8642746]
[1647007535935,0.05239952,2618.3,2618.0,2.8642746]
[1647007536433,0.05239952,2618.3,2618.0,1.90949]
[1647007538137,4.39538492,2618.5,2617.0,0.06885734]
[1647007538138,1.57473381,2618.2,2617.0,0.06885734]
[1647007538377,1.57473381,2618.2,2617.1,0.25]
[1647007538378,1.00052048,2618.0,2617.1,0.25]
[1647007538577,0.3,2618.2,2617.1,0.23837562]
[1647007538578,0.05361748,2617.8,2617.1,0.23837562]
[1647007538778,0.05361748,2617.8,2617.1,1.19356562]
[1647007538979,0.99420473,2617.2,2617.1,1.19356562]
[1647007539180,0.04604659,2617.6,2616.5,0.25]
[1647007539181,1.1357865,2616.8,2616.5,0.25]
[1647007539478,1.1357865,2616.8,2616.6,1.9104389]
[1647007540079,1.14003304,2616.8,2616.6,1.9104389]
[1647007540980,1.1357865,2616.8,2616.6,1.9104389]
[1647007541182,1.1821734,2616.8,2616.6,1.9104389]
[1647007541581,1.14003299,2616.8,2616.6,1.9104389]
[1647007542227,1.17937606,2616.8,2616.6,1.9104389]
[1647007542425,1.18362255,2616.8,2616.6,1.9104389]
[1647007543226,0.04996679,2617.5,2616.6,1.9104389]
[1647007543427,0.04996679,2617.5,2616.8,2.8653698]
[1647007543625,0.04996679,2617.5,2616.9,0.95499]
[1647007544028,0.04996679,2617.5,2616.9,1.0341762]
[1647007544224,0.93946995,2617.5,2617.1,0.25]
[1647007544425,0.93946995,2617.5,2617.2,0.954993]
[1647007544833,0.004246,2617.3,2617.2,0.954993]
[1647007545873,0.93946995,2617.5,2617.2,1.909973]
[1647007546074,0.00424595,2617.4,2617.2,1.909973]
[1647007546873,0.05267488,2618.0,2617.2,2.864883]
[1647007547073,0.05267488,2618.0,2617.4,0.9548945]
[1647007547273,0.05267488,2618.0,2617.5,0.95489]
[1647007547775,0.05267488,2618.0,2617.5,0.54668103]
[1647007547776,1.00007366,2617.8,2617.5,0.54668103]
[1647007547977,0.05267488,2618.0,2617.5,0.54668103]
[1647007548176,0.04561464,2618.3,2617.5,1.9096873]
[1647007548377,1.5744975,2618.2,2617.7,0.95479]
[1647007548574,0.04561464,2618.3,2617.7,0.95479]
[1647007548774,0.152869,2618.4,2617.7,0.95479]
[1647007548977,1.04207039,2618.3,2617.7,0.95479]
[1647007549177,1.09387718,2618.3,2617.7,0.95479]
[1647007549376,1.09387718,2618.3,2617.7,4.45479]
[1647007549627,0.152869,2618.4,2617.9,2.94851106]
[1647007549926,4.19760127,2618.7,2617.9,1.99371616]
[1647007550131,1.57433175,2618.6,2617.9,1.99371616]
[1647007550329,1.57433175,2618.6,2617.9,0.33432616]
[1647007550527,1.57433175,2618.6,2617.9,0.08432616]
[1647007550730,0.00165728,2618.4,2618.0,0.08617941]
[1647007550928,0.00165728,2618.4,2618.2,0.06979198]
[1647007551727,0.01162437,2618.7,2618.2,0.06979198]
[1647007551926,0.01162437,2618.7,2618.3,0.95459]
[1647007551927,0.00154673,2618.4,2618.3,0.95459]
[1647007552131,0.00154673,2618.4,2618.3,1.9092584]
[1647007552427,0.00154673,2618.4,2618.3,5.7092584]
[1647007552831,0.01162437,2618.7,2618.4,1.90915]
[1647007553280,0.00154673,2618.5,2618.4,1.90915]
[1647007554071,1.15379953,2618.7,2618.4,1.90915]
[1647007554273,1.15379953,2618.7,2618.4,2.8637343]
[1647007554475,0.00414227,2618.6,2618.5,0.95462]
[1647007555279,0.01162437,2618.7,2618.5,0.95462]
[1647007555679,0.01576654,2618.7,2618.5,0.95462]
[1647007555881,0.01576654,2618.7,2618.6,3.18800413]
[1647007556081,1.39372437,2619.4,2618.7,3.5]
[1647007556082,0.39372437,2619.4,2618.7,3.5]
[1647007556282,0.39372437,2619.4,2618.9,0.95416]
[1647007556780,0.39372437,2619.4,2618.9,1.25416]
[1647007557224,0.39372437,2619.4,2618.9,3.1623691]
[1647007557426,0.39372437,2619.4,2618.9,2.20827]
[1647007557626,0.39372437,2619.4,2619.1,0.95418]
[1647007558224,0.39372437,2619.4,2619.1,1.25418]
[1647007558425,0.39372437,2619.4,2619.2,0.95403]
[1647007558426,0.01162437,2619.4,2619.2,0.95403]
[1647007558625,8.35058866,2620.1,2619.2,0.95403]
[1647007558626,1.14880236,2619.9,2619.2,0.95403]
[1647007558826,1.14880236,2619.9,2619.3,0.95401]
[1647007559426,1.14744247,2619.9,2619.3,0.95401]
[1647007559630,1.14744247,2619.9,2619.3,0.94238562]
[1647007560030,1.14744247,2619.9,2619.4,0.95401]
[1647007560232,2.567858,2620.3,2619.5,0.954]
[1647007560431,0.05181737,2620.5,2619.5,0.954]
[1647007560432,0.00425168,2619.7,2619.5,0.954]
[1647007561075,0.00425168,2619.7,2619.6,1.90795]
[1647007561277,1.08378212,2620.0,2619.6,2.20795]
[1647007561474,1.08378212,2620.0,2619.7,0.95399]
[1647007562173,1.08378212,2620.0,2619.7,1.90796]
[1647007562575,1.08378212,2620.0,2619.7,1.98077018]
[1647007562776,1.08378212,2620.0,2619.8,2.8618368]
[1647007562976,1.08378212,2620.0,2619.8,3.1618368]
[1647007562977,1.08803355,2620.0,2619.8,3.1618368]
[1647007563382,1.08803355,2620.0,2619.8,2.8618368]
[1647007563582,1.08803355,2620.0,2619.9,0.07867971]
[1647007563783,1.08803355,2620.0,2619.8,1.90787]
[1647007563784,1.14203402,2620.0,2619.8,1.90787]
[1647007563983,0.05670412,2619.9,2619.7,0.95397]
[1647007564185,1.08795379,2620.0,2619.7,0.95397]
[1647007564860,0.05288902,2619.9,2619.5,1.90836]
[1647007565060,0.05288902,2619.9,2619.2,1.90848]
[1647007565061,4.50725902,2619.9,2619.2,1.90848]
[1647007565260,4.50725902,2619.9,2618.7,1.20436]
[1647007565261,0.06548721,2619.8,2618.7,1.20436]
[1647007565459,0.06548721,2619.8,2618.7,0.01645872]
[1647007566060,7.8778,2619.9,2618.8,0.95441]
[1647007566061,5.0778,2619.9,2618.8,0.95441]
[1647007566260,0.05880491,2619.7,2618.8,0.95441]
[1647007566460,0.00417229,2619.4,2618.8,0.95441]
[1647007566659,0.00417229,2619.4,2618.9,0.3]
[1647007567260,0.05331478,2619.5,2619.0,3.1628182]
[1647007567460,0.05331478,2619.5,2619.0,3.17927692]
[1647007567660,0.00391412,2619.3,2619.0,3.17927692]
[1647007567862,0.00391412,2619.3,2619.0,2.87927692]
[1647007567863,0.84789266,2619.1,2619.0,2.87927692]
[1647007568284,0.84789266,2619.1,2619.0,1.92509872]
[1647007568483,0.84789266,2619.1,2619.0,0.01645872]
[1647007573429,0.70199266,2619.1,2619.0,0.01645872]
[1647007573633,3.80888266,2619.1,2619.0,0.01645872]